bitfinex/quotes_BTCUSD_20240810
["timestamp","ask_amount","ask_price","bid_price","bid_amount"]
[1723290636782,0.99625492,60964.0,60963.0,0.0009141]
[1723290637045,1.06755617,60964.0,60963.0,0.0009141]
[1723290638505,1.05355617,60964.0,60963.0,0.0009141]
[1723290639156,1.05343868,60964.0,60963.0,0.0009141]
[1723290639356,1.06743868,60964.0,60963.0,0.0009141]
[1723290640591,0.70272392,60964.0,60963.0,0.0209141]
[1723290641132,0.92376938,60964.0,60963.0,0.0209141]
[1723290641675,0.80096523,60964.0,60963.0,0.0209141]
[1723290641873,0.51237264,60964.0,60963.0,0.0791141]
[1723290642072,0.51237264,60964.0,60963.0,0.0991141]
[1723290642335,0.43869292,60964.0,60963.0,0.0991141]
[1723290642475,0.51237264,60964.0,60963.0,0.0991141]
[1723290642677,0.274878,60964.0,60963.0,0.19212098]
[1723290642903,0.32399723,60964.0,60963.0,0.17212098]
[1723290643102,0.274878,60964.0,60963.0,0.17212098]
[1723290643475,0.246878,60964.0,60963.0,0.0803141]
[1723290643706,0.246878,60964.0,60963.0,0.1003141]
[1723290644054,0.30999856,60964.0,60963.0,0.11392098]
[1723290644471,0.30999856,60964.0,60963.0,0.09392098]
[1723290644657,0.30999856,60964.0,60963.0,0.17212098]
[1723290644854,0.30999856,60964.0,60963.0,0.19212098]
[1723290645005,0.32199856,60964.0,60963.0,0.19212098]
[1723290645213,0.14396756,60964.0,60963.0,0.19212098]
[1723290645412,0.14596756,60964.0,60963.0,0.19212098]
[1723290645799,0.15496756,60964.0,60963.0,0.19212098]
[1723290647544,0.15496756,60964.0,60963.0,0.25822098]
[1723290648533,0.15496756,60964.0,60963.0,0.16002098]
[1723290648534,0.31899856,60964.0,60963.0,0.16002098]
[1723290648738,0.34355884,60964.0,60963.0,0.18002098]
[1723290648884,0.269878,60964.0,60963.0,0.18002098]
[1723290649085,0.31900714,60964.0,60963.0,0.18002098]
[1723290649285,0.31900714,60964.0,60963.0,0.1664141]
[1723290649719,0.31900714,60964.0,60963.0,0.18002214]
[1723290651766,0.34355884,60964.0,60963.0,0.18002214]
[1723290656113,0.433909,60964.0,60963.0,0.01452214]
[1723290656319,0.59772392,60964.0,60963.0,0.01452214]
[1723290656490,0.59772392,60964.0,60963.0,0.0209141]
[1723290656708,0.59772392,60964.0,60963.0,0.03452214]
[1723290657547,0.69596504,60964.0,60963.0,0.03452214]
[1723290659132,0.69596504,60964.0,60963.0,0.01452214]
[1723290659337,0.69596504,60964.0,60963.0,0.03452214]
[1723290661447,0.69600138,60964.0,60963.0,0.03452214]
[1723290661823,0.69600138,60964.0,60963.0,0.0209141]
[1723290663297,0.59772392,60964.0,60963.0,0.0209141]
[1723290663679,0.69600138,60964.0,60963.0,0.0209141]
[1723290664483,0.69601143,60964.0,60963.0,0.0209141]
[1723290665775,0.59772392,60964.0,60963.0,0.0209141]
[1723290666367,0.59772392,60964.0,60963.0,0.0009141]
[1723290666575,0.67144104,60964.0,60963.0,0.0009141]
[1723290666798,0.67144104,60964.0,60963.0,0.0209141]
[1723290667201,0.67144104,60964.0,60963.0,0.0009141]
[1723290667545,0.66244104,60964.0,60963.0,0.0009141]
[1723290667787,0.65844104,60964.0,60963.0,0.0009141]
[1723290668142,0.66144104,60964.0,60963.0,0.0009141]
[1723290668305,0.64844104,60964.0,60963.0,0.0209141]
[1723290668658,0.66744104,60964.0,60963.0,0.0009141]
[1723290668888,0.66744104,60964.0,60963.0,0.0209141]
[1723290669503,0.69201364,60964.0,60963.0,0.0209141]
[1723290670557,0.69203672,60964.0,60963.0,0.0209141]
[1723290670776,0.69203708,60964.0,60963.0,0.0209141]
[1723290671189,0.59372392,60964.0,60963.0,0.0209141]
[1723290671631,0.71658607,60964.0,60963.0,0.0209141]
[1723290675143,0.59372392,60964.0,60963.0,0.0209141]
[1723290676029,0.71658607,60964.0,60963.0,0.0209141]
[1723290676374,0.59372392,60964.0,60963.0,0.0209141]
[1723290677075,0.71666975,60964.0,60963.0,0.0209141]
[1723290677812,0.7166774,60964.0,60963.0,0.0209141]
[1723290678204,0.71668037,60964.0,60963.0,0.0209141]
[1723290678632,0.59372392,60964.0,60963.0,0.0209141]
[1723290678830,0.71668159,60964.0,60963.0,0.0209141]
[1723290679028,0.7166816,60964.0,60963.0,0.0209141]
[1723290679428,0.59372392,60964.0,60963.0,0.0209141]
[1723290682834,0.42969292,60964.0,60963.0,0.0209141]
[1723290683057,0.42969292,60964.0,60963.0,0.03452214]
[1723290683493,0.42969292,60964.0,60963.0,0.11502214]
[1723290683695,0.42969292,60964.0,60963.0,0.18122214]
[1723290686309,0.42969292,60964.0,60963.0,0.16122214]
[1723290686511,0.57736165,60964.0,60963.0,0.16122214]
[1723290686896,0.57736165,60964.0,60963.0,0.1476141]
[1723290687523,0.57736165,60964.0,60963.0,0.16122214]
[1723290688302,0.57736165,60964.0,60963.0,0.18122214]
[1723290689238,0.16750073,60964.0,60963.0,0.18122214]
[1723290689440,0.019832,60964.0,60963.0,0.18122214]
[1723290690079,0.019832,60964.0,60963.0,0.16122214]
[1723290690498,0.019832,60964.0,60963.0,0.18122214]
[1723290691632,0.019832,60964.0,60963.0,0.16122214]
[1723290692284,0.101847,60964.0,60963.0,0.16122214]
[1723290692930,0.019832,60964.0,60963.0,0.16122214]
[1723290693249,0.101847,60964.0,60963.0,0.18122214]
[1723290693835,0.101847,60964.0,60963.0,0.16122214]
[1723290694041,0.101847,60964.0,60963.0,0.18122214]
[1723290695633,0.101847,60964.0,60963.0,0.16122214]
[1723290695830,0.265878,60964.0,60963.0,0.18122214]
[1723290696032,0.265878,60964.0,60963.0,0.11502214]
[1723290699760,0.265878,60964.0,60963.0,0.17702214]
[1723290707449,0.101847,60964.0,60963.0,0.17702214]
[1723290710649,0.265878,60964.0,60963.0,0.17702214]
[1723290711001,0.265878,60964.0,60963.0,0.75113714]
[1723290711002,0.019832,60964.0,60963.0,0.75113714]
[1723290711128,0.019832,60964.0,60963.0,0.72334318]
[1723290711551,0.019832,60964.0,60963.0,0.58710414]
[1723290711552,0.012832,60964.0,60963.0,0.58710414]
[1723290711751,0.012832,60964.0,60963.0,0.6689506]
[1723290711953,0.012832,60964.0,60963.0,0.99679852]
[1723290712170,0.000832,60964.0,60963.0,1.00679852]
[1723290712896,0.000832,60964.0,60963.0,1.55901968]
[1723290713098,0.019832,60964.0,60963.0,1.56001968]
[1723290713301,0.007832,60964.0,60963.0,1.56001968]
[1723290713476,0.000832,60964.0,60963.0,1.55901968]
[1723290714001,0.000832,60964.0,60963.0,1.56301968]
[1723290714408,0.000832,60964.0,60963.0,1.00679852]
[1723290714609,0.000832,60964.0,60963.0,1.01179852]
[1723290716074,0.000832,60964.0,60963.0,1.00679852]
[1723290716276,0.000832,60971.0,60970.0,0.734052]
[1723290716475,0.000832,60971.0,60970.0,0.98606692]
[1723290716677,0.000832,60971.0,60970.0,0.99963445]
[1723290717511,0.001832,60971.0,60970.0,0.99963445]
[1723290717703,0.001832,60971.0,60970.0,1.00263445]
[1723290717962,0.001832,60971.0,60970.0,1.3848657]
[1723290718580,0.001832,60971.0,60970.0,1.3848627]
[1723290718708,0.001832,60971.0,60970.0,1.13882417]
[1723290718907,0.001832,60971.0,60970.0,1.13882448]
[1723290720410,0.001832,60971.0,60970.0,1.12882418]
[1723290723204,0.001832,60971.0,60970.0,1.12882498]
[1723290727026,0.001832,60971.0,60970.0,0.99263445]
[1723290727179,0.001832,60971.0,60970.0,1.12882497]
[1723290728987,0.001832,60971.0,60970.0,1.13539397]
[1723290729803,0.001832,60971.0,60970.0,1.05719397]
[1723290730006,0.001832,60971.0,60970.0,1.13539397]
[1723290730479,0.001832,60971.0,60970.0,0.99920345]
[1723290731918,0.001832,60971.0,60970.0,1.13539397]
[1723290732985,0.001832,60971.0,60970.0,1.13239397]
[1723290733174,0.000832,60971.0,60970.0,1.13239397]
[1723290733511,0.001832,60971.0,60970.0,1.13739397]
[1723290733714,0.002832,60971.0,60970.0,1.14039397]
[1723290733912,0.000832,60971.0,60970.0,1.13239397]
[1723290734269,0.002832,60971.0,60970.0,1.14039397]
[1723290734486,0.001832,60971.0,60970.0,1.13739397]
[1723290734671,0.000832,60971.0,60970.0,1.13239397]
[1723290735073,0.001832,60971.0,60970.0,1.13739397]
[1723290735579,0.001832,60971.0,60970.0,1.00120345]
[1723290735744,0.001832,60971.0,60970.0,1.13739328]
[1723290736044,0.002832,60971.0,60970.0,1.14039328]
[1723290736221,0.001832,60971.0,60970.0,1.13739328]
[1723290736622,0.002832,60971.0,60970.0,1.15239328]
[1723290737855,0.002832,60971.0,60970.0,1.14039328]
[1723290739264,0.002832,60971.0,60970.0,1.00420345]
[1723290739428,0.002832,60971.0,60970.0,1.14039312]
[1723290739828,0.002832,60971.0,60970.0,1.14039301]
[1723290740276,0.002832,60971.0,60970.0,1.38583506]
[1723290740477,0.002832,60971.0,60970.0,1.55607221]
[1723290740859,0.002832,60971.0,60970.0,1.38583506]
[1723290741443,0.002832,60971.0,60970.0,1.55607201]
[1723290743603,0.002832,60971.0,60970.0,1.56607201]
[1723290743848,0.002832,60971.0,60970.0,1.55607201]
[1723290747187,0.002832,60971.0,60970.0,1.00420345]
[1723290747377,0.002832,60971.0,60970.0,1.55554084]
[1723290749619,0.002832,60971.0,60970.0,1.65816257]
[1723290751024,0.002832,60971.0,60970.0,1.27706231]
[1723290751432,0.002832,60971.0,60970.0,1.657956]
[1723290751630,0.002832,60971.0,60970.0,1.65796309]
[1723290752728,0.002832,60971.0,60970.0,1.34515716]
[1723290752923,0.002832,60971.0,60970.0,1.55534113]
[1723290757614,0.002832,60971.0,60970.0,1.55535464]
[1723290758405,0.002832,60971.0,60970.0,1.18083598]
[1723290758608,0.002832,60971.0,60970.0,1.60432386]
[1723290758767,0.002832,60971.0,60970.0,1.55537293]
[1723290759505,0.002832,60971.0,60970.0,1.60432401]
[1723290759850,0.002832,60971.0,60970.0,1.60460919]
[1723290761822,0.002832,60971.0,60970.0,1.55537293]
[1723290762025,0.002832,60971.0,60970.0,1.60460919]
[1723290762247,0.002832,60971.0,60970.0,1.60460834]
[1723290762415,0.002832,60971.0,60970.0,1.60461615]
[1723290762635,0.002832,60971.0,60970.0,1.00420345]
[1723290762966,0.002832,60971.0,60970.0,1.60461615]
[1723290763166,0.002832,60971.0,60970.0,1.60461593]
[1723290765151,0.002832,60971.0,60970.0,1.52641593]
[1723290765373,0.002832,60971.0,60970.0,1.60461426]
[1723290765815,0.002832,60971.0,60970.0,1.00420345]
[1723290766019,0.002832,60971.0,60970.0,1.60450069]
[1723290766170,0.001832,60971.0,60970.0,1.59950069]
[1723290766383,0.001832,60971.0,60970.0,1.60750069]
[1723290766564,0.002832,60971.0,60970.0,1.60750069]
[1723290767010,0.001832,60971.0,60970.0,1.59945896]
[1723290767330,0.001832,60971.0,60970.0,1.60445896]
[1723290767524,0.001832,60971.0,60970.0,1.60745896]
[1723290767525,0.002832,60971.0,60970.0,1.60745896]
[1723290767723,0.001832,60971.0,60970.0,1.92569837]
[1723290768108,0.002832,60971.0,60970.0,1.92869837]
[1723290768648,0.002832,60971.0,60970.0,1.61598505]
[1723290769524,0.002832,60971.0,60970.0,1.4477423]
[1723290769750,0.002832,60971.0,60970.0,1.6179791]
[1723290770716,0.002832,60971.0,60970.0,1.549882]
[1723290771685,0.002832,60971.0,60970.0,1.3796452]
[1723290772701,0.002832,60971.0,60970.0,1.4026452]
[1723290772904,0.002832,60971.0,60970.0,1.4006452]
[1723290774946,0.002832,60971.0,60970.0,1.32684169]
[1723290777329,0.002832,60971.0,60970.0,0.96902669]
[1723290777727,0.066232,60971.0,60970.0,0.70338853]
[1723290778441,0.066232,60971.0,60970.0,0.13314353]
[1723290778642,0.555962,60971.0,60970.0,0.04456753]
[1723290778845,0.39195,60971.0,60970.0,0.02456753]
[1723290779045,0.39195,60971.0,60970.0,0.031]
[1723290779488,0.40166494,60971.0,60970.0,0.031]
[1723290780225,0.39966494,60971.0,60970.0,0.02]
[1723290780508,0.41466494,60971.0,60970.0,0.02]
[1723290780722,0.40066494,60971.0,60970.0,0.02]
[1723290781060,0.239938,60971.0,60970.0,0.0982]
[1723290781242,0.167932,60971.0,60970.0,0.0992]
[1723290781548,0.167932,60971.0,60970.0,0.10953348]
[1723290781720,0.167932,60971.0,60970.0,0.08953348]
[1723290781930,0.167932,60971.0,60970.0,0.10953348]
[1723290782125,0.167932,60971.0,60970.0,0.17154048]
[1723290782328,0.167932,60971.0,60970.0,0.19154048]
[1723290782653,0.167932,60971.0,60970.0,0.17154048]
[1723290783151,0.167932,60971.0,60970.0,0.35555548]
[1723290783933,0.167932,60971.0,60970.0,0.19154048]
[1723290784287,0.167932,60971.0,60970.0,0.35555548]
[1723290784501,0.167932,60971.0,60970.0,0.19154048]
[1723290784803,0.167932,60971.0,60970.0,0.17154048]
[1723290785170,0.167932,60971.0,60970.0,0.19154048]
[1723290785395,0.167932,60971.0,60970.0,0.17154048]
[1723290785542,0.167932,60971.0,60970.0,0.19154048]
[1723290787500,0.167932,60971.0,60970.0,0.17154048]
[1723290788061,0.167932,60971.0,60970.0,0.19154048]
[1723290788300,0.167932,60971.0,60970.0,0.17154048]
[1723290788667,0.167932,60971.0,60970.0,0.19154048]
[1723290790308,0.167932,60971.0,60970.0,0.17154048]
[1723290790506,0.167932,60971.0,60970.0,0.19154048]
[1723290792944,0.167932,60971.0,60970.0,0.10953348]
[1723290795289,0.249938,60971.0,60970.0,0.10953348]
[1723290798400,0.167932,60971.0,60970.0,0.10953348]
[1723290800114,0.167932,60971.0,60970.0,0.08953348]
[1723290800316,0.167932,60971.0,60970.0,0.10953348]
[1723290803745,0.167932,60971.0,60970.0,0.08953348]
[1723290806442,0.167932,60971.0,60970.0,0.22575481]
[1723290806662,0.167932,60971.0,60970.0,0.08953348]
[1723290806866,0.167932,60971.0,60970.0,0.22575511]
[1723290807067,0.167932,60971.0,60970.0,0.08953348]
[1723290807408,0.167932,60971.0,60970.0,0.22575481]
[1723290810109,0.157932,60971.0,60970.0,0.22475481]
[1723290810275,0.143932,60971.0,60970.0,0.22475481]
[1723290810490,0.149932,60971.0,60970.0,0.22575481]
[1723290811099,0.149932,60971.0,60970.0,0.24575481]
[1723290811297,0.006832,60971.0,60970.0,0.32776181]
[1723290811710,0.006832,60971.0,60970.0,0.30776181]
[1723290812022,0.011832,60971.0,60970.0,0.39036181]
[1723290812363,0.004832,60971.0,60970.0,0.39036181]
[1723290812807,0.012832,60971.0,60970.0,0.39136181]
[1723290813521,0.000832,60971.0,60970.0,0.39036181]
[1723290813729,0.008832,60971.0,60970.0,0.55537681]
[1723290813951,0.012832,60971.0,60970.0,0.71939181]
[1723290814155,0.012832,60971.0,60970.0,0.79979181]
[1723290814395,0.012832,60971.0,60970.0,0.66357048]
[1723290814600,0.012832,60971.0,60970.0,0.79979029]
[1723290815079,0.004832,60971.0,60970.0,0.63477528]
[1723290815279,0.004832,60971.0,60970.0,0.61477528]
[1723290815479,0.008832,60971.0,60970.0,0.61477528]
[1723290815684,0.008775,60971.0,60970.0,0.61477528]
[1723290815903,0.004775,60971.0,60970.0,0.63477528]
[1723290816107,0.011775,60971.0,60970.0,0.79879028]
[1723290816501,0.007775,60971.0,60970.0,0.79879028]
[1723290816703,0.007775,60971.0,60970.0,0.9626052]
[1723290816903,0.010775,60971.0,60970.0,0.9626052]
[1723290817313,0.007775,60971.0,60970.0,0.9626052]
[1723290817644,0.007775,60971.0,60970.0,0.9646052]
[1723290818407,0.000775,60971.0,60970.0,0.9646052]
[1723290818613,0.000775,60971.0,60970.0,0.9696052]
[1723290819051,0.000775,60971.0,60970.0,0.9676052]
[1723290819415,0.000775,60971.0,60970.0,0.9756052]
[1723290819416,0.001775,60971.0,60970.0,0.9756052]
[1723290819621,0.001775,60971.0,60970.0,0.8115902]
[1723290820041,0.001775,60971.0,60970.0,0.9756052]
[1723290821282,0.001775,60971.0,60970.0,0.8115902]
[1723290821502,0.001775,60971.0,60970.0,0.8115776]
[1723290824277,0.001775,60971.0,60970.0,0.81157791]
[1723290825653,0.001775,60971.0,60970.0,0.6753704]
[1723290825875,0.001775,60971.0,60970.0,0.81157791]
[1723290826800,0.001775,60971.0,60970.0,0.25774099]
[1723290827105,0.001775,60971.0,60970.0,0.33974799]
[1723290829366,0.067375,60971.0,60970.0,0.33974799]
[1723290830392,0.001775,60971.0,60970.0,0.33974799]
[1723290831313,0.001775,60971.0,60970.0,0.34066319]
[1723290834177,0.067375,60971.0,60970.0,0.34066319]
[1723290834385,0.001775,60971.0,60970.0,0.34066319]
[1723290838082,0.001775,60971.0,60970.0,0.34066782]
[1723290838221,0.001775,60971.0,60970.0,0.34066691]
[1723290839100,0.001775,60971.0,60970.0,0.34066672]
[1723290839760,0.001775,60971.0,60970.0,0.34066758]
[1723290840117,0.001775,60971.0,60970.0,0.20445568]
[1723290840319,0.001775,60971.0,60970.0,0.3406723]
[1723290842412,0.067375,60971.0,60970.0,0.34066965]
[1723290842769,0.001775,60971.0,60970.0,0.34067015]
[1723290845975,0.001775,60971.0,60970.0,0.3406686]
[1723290847604,0.001775,60971.0,60970.0,0.34066889]
[1723290849412,0.001775,60971.0,60970.0,0.20445568]
[1723290849597,0.001775,60971.0,60970.0,0.64948393]
[1723290853240,0.001775,60971.0,60970.0,0.64947905]
[1723290853622,0.001775,60971.0,60970.0,0.57127905]
[1723290853799,0.001775,60971.0,60970.0,0.40136405]
[1723290854005,0.001775,60971.0,60970.0,0.42136405]
[1723290854407,0.001775,60971.0,60970.0,0.25865705]
[1723290854763,0.001775,60971.0,60970.0,0.34066405]
[1723290855203,0.001775,60971.0,60970.0,0.50467905]
[1723290856596,0.001775,60971.0,60970.0,0.5046808]
[1723290856991,0.001775,60971.0,60970.0,0.36847068]
[1723290857163,0.001775,60971.0,60970.0,0.50468083]
[1723290858505,0.001775,60971.0,60970.0,0.50468439]
[1723290860046,0.001775,60971.0,60970.0,0.34066939]
[1723290862386,0.001775,60971.0,60970.0,0.25866239]
[1723290863689,0.001775,60971.0,60970.0,0.20445568]
[1723290863885,0.001775,60971.0,60970.0,0.34066972]
[1723290864101,0.001775,60971.0,60970.0,0.50468472]
[1723290864752,0.001775,60971.0,60970.0,0.72939972]
[1723290864959,0.001775,60971.0,60970.0,0.81349972]
[1723290865155,0.001775,60971.0,60970.0,0.79349972]
[1723290865279,0.001775,60971.0,60970.0,0.62948472]
[1723290865498,0.001775,60971.0,60970.0,0.95731464]
[1723290865726,0.001775,60971.0,60970.0,0.97731464]
[1723290866395,0.001775,60971.0,60970.0,1.15224828]
[1723290866612,0.001775,60971.0,60970.0,1.39058848]
[1723290866846,0.001775,60971.0,60970.0,1.15224828]
[1723290867083,0.001775,60971.0,60970.0,0.8361006]
[1723290867294,0.001775,60971.0,60970.0,1.15230805]
[1723290867710,0.000775,60971.0,60970.0,1.14430946]
[1723290868166,0.001775,60971.0,60970.0,1.15130946]
[1723290868701,0.000775,60971.0,60970.0,1.14430946]
[1723290868906,0.000775,60971.0,60970.0,0.8131006]
[1723290869108,0.001775,60971.0,60970.0,0.8251006]
[1723290869327,0.001775,60971.0,60970.0,1.15132486]
[1723290869481,0.000775,60971.0,60970.0,1.13932486]
[1723290869679,0.000775,60971.0,60970.0,1.11932486]
[1723290869883,0.001775,60971.0,60970.0,1.12732486]
[1723290870518,0.001775,60971.0,60970.0,0.81949494]
[1723290870771,0.001775,60971.0,60970.0,0.64446787]
[1723290871097,0.001775,60971.0,60970.0,0.50216787]
[1723290871337,0.001775,60971.0,60970.0,0.49966787]
[1723290871783,0.002775,60971.0,60970.0,0.50966787]
[1723290872202,0.001775,60971.0,60970.0,0.49966787]
[1723290872402,0.002775,60971.0,60970.0,0.51166787]
[1723290873656,0.002775,60971.0,60970.0,0.34765287]
[1723290874441,0.002775,60971.0,60970.0,0.21145568]
[1723290874644,0.002775,60971.0,60970.0,0.32765882]
[1723290875045,0.002775,60971.0,60970.0,0.34765882]
[1723290878091,0.002775,60971.0,60970.0,0.58927384]
[1723290878458,0.002775,60971.0,60970.0,0.45307068]
[1723290878665,0.002775,60971.0,60970.0,0.58927337]
[1723290885329,0.002775,60971.0,60970.0,0.45307068]
[1723290885530,0.002775,60971.0,60970.0,0.58927666]
[1723290888996,0.002775,60971.0,60970.0,0.58927805]
[1723290889638,0.002775,60971.0,60970.0,0.58928063]
[1723290892522,0.002775,60971.0,60970.0,0.45307068]
[1723290892711,0.002775,60971.0,60970.0,0.34765987]
[1723290892908,0.065175,60971.0,60970.0,0.24565287]
[1723290894075,0.065175,60971.0,60970.0,0.34765987]
[1723290894273,0.065175,60971.0,60970.0,0.32765987]
[1723290894624,0.065175,60971.0,60970.0,0.24565287]
[1723290894993,0.065175,60971.0,60970.0,0.26565287]
[1723290895196,0.065175,60971.0,60970.0,0.24565287]
[1723290895400,0.065175,60971.0,60970.0,0.26565287]
[1723290896021,0.065175,60971.0,60970.0,0.12944868]
[1723290896172,0.065175,60971.0,60970.0,0.26565899]
[1723290896983,0.002775,60971.0,60970.0,0.34766599]
[1723290898193,0.002775,60971.0,60970.0,0.21145568]
[1723290899766,0.002775,60971.0,60970.0,0.34766585]
[1723290901086,0.002775,60971.0,60970.0,0.21145568]
[1723290902541,0.002775,60971.0,60970.0,0.19145568]
[1723290902749,0.002775,60971.0,60970.0,0.21145568]
[1723290902949,0.002775,60971.0,60970.0,0.42876322]
[1723290903818,0.002775,60971.0,60970.0,0.29255568]
[1723290905083,0.002775,60971.0,60970.0,0.34766674]
[1723290905663,0.002775,60971.0,60970.0,0.48387858]
[1723290906744,0.002775,60971.0,60970.0,0.34766674]
[1723290907020,0.002775,60971.0,60970.0,0.4838797]
[1723290907157,0.002775,60971.0,60970.0,0.34766674]
[1723290907362,0.002775,60971.0,60970.0,0.48388069]
[1723290907758,0.002775,60971.0,60970.0,0.48388013]
[1723290908162,0.002775,60971.0,60970.0,1.31194005]
[1723290908369,0.12305135,60979.0,60970.0,1.31194005]
[1723290908370,0.04922054,60989.0,60981.0,0.408177]
[1723290908628,0.04922054,60993.0,60981.0,1.19110546]
[1723290908772,0.04922054,60993.0,60981.0,1.18096005]
[1723290909172,0.04922054,60992.0,60981.0,1.1128736]
[1723290909690,0.04918027,60992.0,60981.0,0.9402449]
[1723290910103,0.002832,60982.0,60981.0,0.80403151]
[1723290910300,0.000832,60982.0,60981.0,0.94020812]
[1723290910896,0.001832,60982.0,60981.0,0.94920812]
[1723290911226,0.001832,60982.0,60981.0,0.95899876]
[1723290911428,0.000832,60982.0,60981.0,1.12498376]
[1723290911747,0.000832,60982.0,60981.0,1.14498376]
[1723290911917,0.000832,60982.0,60981.0,1.11398376]
[1723290912352,0.000832,60982.0,60981.0,1.12498376]
[1723290912757,0.001832,60982.0,60981.0,1.13298376]
[1723290913270,0.000832,60982.0,60981.0,1.12498376]
[1723290913504,0.001832,60982.0,60981.0,1.13398376]
[1723290913667,0.001832,60982.0,60981.0,1.15398376]
[1723290913900,0.001832,60982.0,60981.0,1.153978]
[1723290915916,0.001832,60982.0,60981.0,1.133978]
[1723290916124,0.001832,60982.0,60981.0,1.153978]
[1723290917699,0.001832,60982.0,60981.0,1.01780715]
[1723290917918,0.001832,60982.0,60981.0,1.153978]
[1723290919479,0.001832,60982.0,60981.0,1.160546]
[1723290920938,0.001832,60982.0,60981.0,1.02437515]
[1723290921100,0.001832,60982.0,60981.0,1.16054601]
[1723290921409,0.001832,60982.0,60981.0,1.14054601]
[1723290921618,0.001832,60982.0,60981.0,1.16054601]
[1723290922196,0.001832,60982.0,60981.0,1.17054601]
[1723290922527,0.001832,60982.0,60981.0,1.18054601]
[1723290923674,0.001832,60982.0,60981.0,1.17054601]
[1723290924354,0.001832,60982.0,60981.0,1.18054601]
[1723290924544,0.001832,60982.0,60981.0,1.1805434]
[1723290925324,0.001832,60982.0,60981.0,1.1705434]
[1723290927200,0.001832,60982.0,60981.0,1.16075276]
[1723290927419,0.064532,60982.0,60981.0,0.43856784]
[1723290927654,0.064532,60982.0,60981.0,0.34621484]
[1723290927902,0.064532,60982.0,60981.0,0.21004659]
[1723290928105,0.064532,60982.0,60981.0,0.34623054]
[1723290928451,0.064532,60982.0,60981.0,0.51021747]
[1723290928652,0.05854042,60982.0,60981.0,0.51021747]
[1723290929469,0.05854042,60982.0,60981.0,0.50121747]
[1723290929669,0.05854042,60982.0,60981.0,0.50321747]
[1723290929885,0.05854042,60982.0,60981.0,0.49221747]
[1723290930097,0.05854042,60982.0,60981.0,0.49521747]
[1723290930835,0.05854042,60982.0,60981.0,0.32823247]
[1723290931158,0.05854042,60982.0,60981.0,0.49721747]
[1723290931578,0.05854042,60982.0,60981.0,0.36103159]
[1723290931690,0.05854042,60982.0,60981.0,0.49721746]
[1723290934536,0.05854042,60982.0,60981.0,0.25124046]
[1723290934741,0.05854042,60982.0,60981.0,0.33323246]
[1723290936973,0.05854042,60982.0,60981.0,0.33414766]
[1723290937496,0.05937242,60982.0,60981.0,0.25594766]
[1723290937718,0.05937242,60982.0,60981.0,0.01776979]
[1723290937719,0.38714542,60982.0,60981.0,0.01776979]
[1723290937906,0.55112742,60982.0,60981.0,0.0079152]
[1723290938118,0.60018769,60982.0,60981.0,0.0079152]
[1723290938705,0.60018769,60982.0,60981.0,0.0259152]
[1723290938905,0.60018769,60982.0,60981.0,0.0059152]
[1723290939364,0.60018769,60982.0,60981.0,0.0009152]
[1723290939668,0.60118769,60982.0,60981.0,0.0009152]
[1723290940031,0.61005603,60982.0,60981.0,0.0009152]
[1723290940341,0.56699576,60982.0,60981.0,0.0009152]
[1723290940563,0.56199576,60982.0,60981.0,0.0019152]
[1723290940739,0.56199576,60982.0,60981.0,0.0029152]
[1723290940740,0.57199576,60982.0,60981.0,0.0029152]
[1723290940901,0.57099576,60982.0,60981.0,0.0019152]
[1723290941099,0.56099576,60982.0,60981.0,0.0791152]
[1723290941298,0.39701376,60982.0,60981.0,0.0991152]
[1723290941671,0.40701376,60982.0,60981.0,0.1001152]
[1723290941875,0.45609879,60982.0,60981.0,0.1001152]
[1723290941992,0.62008079,60982.0,60981.0,0.1001152]
[1723290942194,0.61021245,60982.0,60981.0,0.1001152]
[1723290942419,0.56212742,60982.0,60981.0,0.1011152]
[1723290942859,0.61121428,60982.0,60981.0,0.1011152]
[1723290942995,0.56212742,60982.0,60981.0,0.1011152]
[1723290944665,0.56212742,60982.0,60981.0,0.0229152]
[1723290945702,0.56212742,60982.0,60981.0,0.0029152]
[1723290946085,0.56212742,60982.0,60981.0,0.0229152]
[1723290946263,0.56212742,60982.0,60981.0,0.0029152]
[1723290947963,0.72610942,60982.0,60981.0,0.0029152]
[1723290948645,0.88992434,60982.0,60981.0,0.0029152]
[1723290949016,1.08808296,60982.0,60981.0,0.0029152]
[1723290949178,0.98992434,60982.0,60981.0,0.0029152]
[1723290949375,1.11262262,60982.0,60981.0,0.0029152]
[1723290950133,1.18982262,60982.0,60981.0,0.0019152]
[1723290950314,1.18982262,60982.0,60981.0,0.0009152]
[1723290950315,1.67712434,60982.0,60981.0,0.0009152]
[1723290950513,1.68612434,60982.0,60981.0,0.0029152]
[1723290950932,1.85010634,60982.0,60981.0,0.0029152]
[1723290951134,1.68612434,60982.0,60981.0,0.0029152]
[1723290951538,1.84210634,60982.0,60981.0,0.0019152]
[1723290951742,1.85010634,60982.0,60981.0,0.0029152]
[1723290951943,1.84910634,60982.0,60981.0,0.0019152]
[1723290952352,1.85910634,60982.0,60981.0,0.0029152]
[1723290952727,1.85910634,60982.0,60981.0,0.0019152]
[1723290952925,1.68512434,60982.0,60981.0,0.0019152]
[1723290953287,1.69112434,60982.0,60981.0,0.0019152]
[1723290953407,1.70512434,60982.0,60981.0,0.0019152]
[1723290953812,1.69112434,60982.0,60981.0,0.0019152]
[1723290954036,1.70512434,60982.0,60981.0,0.0019152]
[1723290954467,1.82770322,60982.0,60981.0,0.0019152]
[1723290955107,1.62692434,60982.0,60981.0,0.0019152]
[1723290955462,1.72497204,60982.0,60981.0,0.0019152]
[1723290955667,1.62692434,60982.0,60981.0,0.0019152]
[1723290956431,1.67594144,60982.0,60981.0,0.0019152]
[1723290957062,1.62692434,60982.0,60981.0,0.0019152]
[1723290957467,1.67593942,60982.0,60981.0,0.0019152]
[1723290957876,1.05593942,60982.0,60981.0,0.0019152]
[1723290959182,1.63593942,60982.0,60981.0,0.0019152]
[1723290959605,1.58692434,60982.0,60981.0,0.0019152]
[1723290960250,1.57292434,60982.0,60981.0,0.0009152]
[1723290960430,1.55892434,60982.0,60981.0,0.0009152]
[1723290960788,0.360805,60982.0,60981.0,0.0219152]
[1723290961017,0.524787,60982.0,60981.0,0.0219152]
[1723290961523,0.370805,60982.0,60981.0,0.0229152]
[1723290961729,0.370805,60982.0,60981.0,0.1655152]
[1723290961931,0.106823,60982.0,60981.0,0.1655152]
[1723290962112,0.270805,60982.0,60981.0,0.17496615]
[1723290962521,0.270805,60982.0,60981.0,0.17396615]
[1723290962695,0.260805,60982.0,60981.0,0.17396615]
[1723290963307,0.255805,60982.0,60981.0,0.17396615]